[Event "Early-Titled-Tuesday-Blitz-August-29-2023"]
[Site "Chess.com"]
[Date "2023.08.29"]
[Round "5"]
[White "sorch29"]
[Black "Mikhail_Golubev"]
[Result "1-0"]
[WhiteElo "2369"]
[BlackElo "2564"]
[TimeControl "180+1"]
[EndTime "8:55:30 PDT"]
[Termination "sorch29 won on time"]

1. d4 {[%clk 0:02:59.4]} 1... Nf6 {[%clk 0:02:59.3]} 2. c4 {[%clk 0:02:58.4]}
2... g6 {[%clk 0:02:58.7]} 3. Nc3 {[%clk 0:02:59]} 3... Bg7 {[%clk 0:02:59.1]}
4. e4 {[%clk 0:02:58.7]} 4... d6 {[%clk 0:02:59]} 5. Be2 {[%clk 0:02:59.4]} 5...
O-O {[%clk 0:02:58]} 6. Nf3 {[%clk 0:03:00.1]} 6... e5 {[%clk 0:02:57.1]} 7. d5
{[%clk 0:03:00.8]} 7... a5 {[%clk 0:02:53.9]} 8. Bg5 {[%clk 0:03:00.7]} 8... h6
{[%clk 0:02:51.6]} 9. Bh4 {[%clk 0:03:01.1]} 9... Na6 {[%clk 0:02:48.7]} 10. Nd2
{[%clk 0:03:00.7]} 10... Bd7 {[%clk 0:02:42.1]} 11. O-O {[%clk 0:02:55.9]} 11...
Qe8 {[%clk 0:02:37.4]} 12. b3 {[%clk 0:02:50]} 12... Nh7 {[%clk 0:02:35.7]} 13.
f3 {[%clk 0:02:47.3]} 13... h5 {[%clk 0:02:24.8]} 14. a3 {[%clk 0:02:43.3]}
14... Bh6 {[%clk 0:02:23.9]} 15. Bf2 {[%clk 0:02:40.6]} 15... Qe7 {[%clk
0:02:17.3]} 16. Rb1 {[%clk 0:02:38.3]} 16... Qg5 {[%clk 0:01:40.4]} 17. Rb2
{[%clk 0:02:36.7]} 17... Bh3 {[%clk 0:01:33]} 18. g3 {[%clk 0:02:32.6]} 18...
Bxf1 {[%clk 0:01:28.5]} 19. Nxf1 {[%clk 0:02:28.7]} 19... Qe7 {[%clk 0:01:16]}
20. b4 {[%clk 0:02:28.3]} 20... axb4 {[%clk 0:01:15.6]} 21. axb4 {[%clk
0:02:29.2]} 21... Nb8 {[%clk 0:00:38]} 22. Kg2 {[%clk 0:02:28.9]} 22... Nd7
{[%clk 0:00:37.3]} 23. Nb5 {[%clk 0:02:24]} 23... Rfc8 {[%clk 0:00:35.5]} 24.
Rc2 {[%clk 0:02:23.7]} 24... Nhf6 {[%clk 0:00:26.9]} 25. c5 {[%clk 0:02:23]}
25... Ne8 {[%clk 0:00:26.9]} 26. c6 {[%clk 0:02:11.6]} 26... bxc6 {[%clk
0:00:26.3]} 27. Rxc6 {[%clk 0:02:02.7]} 27... Nb8 {[%clk 0:00:26]} 28. Rc2
{[%clk 0:02:01.2]} 28... Qd7 {[%clk 0:00:25.8]} 29. Nc3 {[%clk 0:01:58.3]} 29...
Na6 {[%clk 0:00:22]} 30. Bb5 {[%clk 0:01:57.6]} 30... Qd8 {[%clk 0:00:21.5]} 31.
Qb1 {[%clk 0:01:47.6]} 31... Rcb8 {[%clk 0:00:21]} 32. Rb2 {[%clk 0:01:47.5]}
32... Rxb5 {[%clk 0:00:15.3]} 33. Nxb5 {[%clk 0:01:47.4]} 33... Qb8 {[%clk
0:00:14.7]} 34. Nc3 {[%clk 0:01:43.6]} 34... Qb7 {[%clk 0:00:13]} 35. Ra2 {[%clk
0:01:39.9]} 35... Rc8 {[%clk 0:00:12.4]} 36. b5 {[%clk 0:01:36.9]} 36... Nc5
{[%clk 0:00:12.2]} 37. Qc2 {[%clk 0:01:29.3]} 37... Bf8 {[%clk 0:00:10.7]} 38.
Nd2 {[%clk 0:01:28.6]} 38... Ra8 {[%clk 0:00:10.4]} 39. Nc4 {[%clk 0:01:28.2]}
39... Rxa2 {[%clk 0:00:09.6]} 40. Qxa2 {[%clk 0:01:29.1]} 40... Nf6 {[%clk
0:00:09.5]} 41. Bxc5 {[%clk 0:01:26.7]} 41... dxc5 {[%clk 0:00:10.4]} 42. Qa6
{[%clk 0:01:27.2]} 42... Qb8 {[%clk 0:00:08.3]} 43. Na5 {[%clk 0:01:27.7]} 43...
Qd8 {[%clk 0:00:05.9]} 44. Nc6 {[%clk 0:01:27.5]} 44... Qd7 {[%clk 0:00:05]} 45.
h4 {[%clk 0:01:20.9]} 45... Bd6 {[%clk 0:00:04.3]} 46. Qa8+ {[%clk 0:01:20.6]}
46... Kg7 {[%clk 0:00:04]} 47. Qd8 {[%clk 0:01:21.3]} 47... Qxd8 {[%clk
0:00:02.5]} 48. Nxd8 {[%clk 0:01:22.2]} 48... Nd7 {[%clk 0:00:02.7]} 49. Nc6
{[%clk 0:01:21.1]} 49... Nb6 {[%clk 0:00:02.8]} 50. Kf2 {[%clk 0:01:17.2]} 50...
f6 {[%clk 0:00:03]} 51. Ke2 {[%clk 0:01:13]} 51... Kf7 {[%clk 0:00:03.2]} 52.
Na5 {[%clk 0:01:10.5]} 52... c4 {[%clk 0:00:03.2]} 53. Na2 {[%clk 0:01:07.8]}
53... Ke8 {[%clk 0:00:02.3]} 54. Kd2 {[%clk 0:01:06.3]} 54... Kd7 {[%clk
0:00:02.4]} 55. Kc3 {[%clk 0:01:05.7]} 55... f5 {[%clk 0:00:02.7]} 56. Nxc4
{[%clk 0:01:05.6]} 56... Nxc4 {[%clk 0:00:01.9]} 57. Kxc4 {[%clk 0:01:05.4]}
57... f4 {[%clk 0:00:02.5]} 58. gxf4 {[%clk 0:01:01]} 58... exf4 {[%clk
0:00:01.8]} 59. Nc3 {[%clk 0:01:01.9]} 59... Be5 {[%clk 0:00:01.8]} 60. Ne2
{[%clk 0:00:59.8]} 60... Kd6 {[%clk 0:00:01.2]} 61. Kb4 {[%clk 0:00:55.8]} 1-0

[Event "Early-Titled-Tuesday-Blitz-August-29-2023"]
[Site "Chess.com"]
[Date "2023.08.29"]
[Round "5"]
[White "CalinGheorghiu"]
[Black "Grossboss19"]
[Result "1-0"]
[WhiteElo "2347"]
[BlackElo "2494"]
[TimeControl "180+1"]
[EndTime "8:55:30 PDT"]
[Termination "CalinGheorghiu won by checkmate"]

1. d4 {[%clk 0:02:22.7]} 1... Nf6 {[%clk 0:02:58.6]} 2. Bf4 {[%clk 0:02:21.4]}
2... c5 {[%clk 0:02:57.9]} 3. d5 {[%clk 0:02:20.2]} 3... b5 {[%clk 0:02:56.9]}
4. f3 {[%clk 0:02:00.8]} 4... d6 {[%clk 0:02:47]} 5. e4 {[%clk 0:02:00.5]} 5...
a6 {[%clk 0:02:47.4]} 6. c4 {[%clk 0:01:51.1]} 6... g6 {[%clk 0:02:41.4]} 7. Ne2
{[%clk 0:01:42.6]} 7... Bg7 {[%clk 0:02:39.7]} 8. Ng3 {[%clk 0:01:42.6]} 8...
Nbd7 {[%clk 0:02:10.4]} 9. Be2 {[%clk 0:01:26.6]} 9... Nb6 {[%clk 0:02:05]} 10.
Nd2 {[%clk 0:01:19.4]} 10... Nfd7 {[%clk 0:01:58.4]} 11. Rb1 {[%clk 0:01:13.7]}
11... Ne5 {[%clk 0:01:52.1]} 12. b3 {[%clk 0:01:06.6]} 12... h5 {[%clk
0:01:49.3]} 13. O-O {[%clk 0:01:03.3]} 13... O-O {[%clk 0:01:37.5]} 14. Bg5
{[%clk 0:00:57.1]} 14... Qc7 {[%clk 0:01:31.8]} 15. h3 {[%clk 0:00:51.6]} 15...
Re8 {[%clk 0:01:09.9]} 16. f4 {[%clk 0:00:51.7]} 16... Ned7 {[%clk 0:01:09.6]}
17. f5 {[%clk 0:00:52.2]} 17... f6 {[%clk 0:01:06.6]} 18. Be3 {[%clk 0:00:39.4]}
18... h4 {[%clk 0:01:05.4]} 19. Nh1 {[%clk 0:00:38.2]} 19... g5 {[%clk
0:01:05.2]} 20. Bh5 {[%clk 0:00:38.2]} 20... Rd8 {[%clk 0:01:02.6]} 21. Bg6
{[%clk 0:00:38]} 21... Nf8 {[%clk 0:01:00.2]} 22. Qh5 {[%clk 0:00:37.9]} 22...
Nxg6 {[%clk 0:01:00.1]} 23. fxg6 {[%clk 0:00:37.9]} 23... Nd7 {[%clk 0:00:42.8]}
24. Nf3 {[%clk 0:00:31.3]} 24... Nf8 {[%clk 0:00:39.5]} 25. Nf2 {[%clk
0:00:21.1]} 25... Qd7 {[%clk 0:00:24.3]} 26. Ng4 {[%clk 0:00:20.5]} 26... Qe8
{[%clk 0:00:23.4]} 27. Nxg5 {[%clk 0:00:15.6]} 27... Bxg4 {[%clk 0:00:20.4]} 28.
hxg4 {[%clk 0:00:14.1]} 28... Qxg6 {[%clk 0:00:17.6]} 29. Qxg6 {[%clk 0:00:13]}
29... Nxg6 {[%clk 0:00:18.5]} 30. Ne6 {[%clk 0:00:13.2]} 30... Rdc8 {[%clk
0:00:18.9]} 31. g5 {[%clk 0:00:10.1]} 31... Ne5 {[%clk 0:00:16.1]} 32. gxf6
{[%clk 0:00:10.3]} 32... Bxf6 {[%clk 0:00:15.8]} 33. Rf5 {[%clk 0:00:09]} 33...
bxc4 {[%clk 0:00:15.2]} 34. bxc4 {[%clk 0:00:09.2]} 34... Rab8 {[%clk
0:00:14.9]} 35. Rbf1 {[%clk 0:00:08.6]} 35... Rb2 {[%clk 0:00:12.9]} 36. Bg5
{[%clk 0:00:07.1]} 36... Bh8 {[%clk 0:00:12.2]} 37. Bxe7 {[%clk 0:00:06.9]}
37... Nxc4 {[%clk 0:00:11.2]} 38. Rg5+ {[%clk 0:00:07.2]} 38... Kh7 {[%clk
0:00:10.7]} 39. Rh5+ {[%clk 0:00:06.4]} 39... Kg6 {[%clk 0:00:10.6]} 40. Rg5+
{[%clk 0:00:06.6]} 40... Kh6 {[%clk 0:00:10.7]} 41. Rf4 {[%clk 0:00:05.9]} 41...
Bd4+ {[%clk 0:00:04.6]} 42. Nxd4 {[%clk 0:00:05.4]} 42... Rb1+ {[%clk
0:00:04.7]} 43. Kh2 {[%clk 0:00:05]} 43... cxd4 {[%clk 0:00:03.9]} 44. Rxh4#
{[%clk 0:00:05.5]} 1-0

[Event "Early-Titled-Tuesday-Blitz-August-29-2023"]
[Site "Chess.com"]
[Date "2023.08.29"]
[Round "5"]
[White "xamax2000"]
[Black "Vsevolod_Ovchinnikov"]
[Result "1-0"]
[WhiteElo "2855"]
[BlackElo "2619"]
[TimeControl "180+1"]
[EndTime "8:55:36 PDT"]
[Termination "xamax2000 won on time"]

1. Nf3 {[%clk 0:02:57.6]} 1... Nf6 {[%clk 0:02:59.9]} 2. g3 {[%clk 0:02:58]}
2... g6 {[%clk 0:03:00]} 3. c4 {[%clk 0:02:57.4]} 3... d5 {[%clk 0:03:00.3]} 4.
d4 {[%clk 0:02:55.1]} 4... dxc4 {[%clk 0:03:00]} 5. Bg2 {[%clk 0:02:55.6]} 5...
Bg7 {[%clk 0:03:00.6]} 6. Na3 {[%clk 0:02:52.4]} 6... O-O {[%clk 0:03:00.1]} 7.
Nxc4 {[%clk 0:02:51.9]} 7... Nc6 {[%clk 0:03:00.8]} 8. O-O {[%clk 0:02:50.3]}
8... Be6 {[%clk 0:03:01.3]} 9. b3 {[%clk 0:02:50.3]} 9... Bd5 {[%clk 0:03:01.4]}
10. Bb2 {[%clk 0:02:44.2]} 10... a5 {[%clk 0:03:01.8]} 11. a4 {[%clk 0:02:43.7]}
11... Qc8 {[%clk 0:03:01.8]} 12. Rc1 {[%clk 0:02:41.6]} 12... Rd8 {[%clk
0:03:02]} 13. e3 {[%clk 0:02:40.5]} 13... h6 {[%clk 0:03:01.2]} 14. Qe2 {[%clk
0:02:39.8]} 14... Qe6 {[%clk 0:03:01.7]} 15. Rfd1 {[%clk 0:02:35.5]} 15... Rac8
{[%clk 0:02:59]} 16. Ba3 {[%clk 0:02:13.8]} 16... b6 {[%clk 0:02:41.3]} 17. Nfe5
{[%clk 0:01:56.8]} 17... Bxg2 {[%clk 0:02:38.8]} 18. Kxg2 {[%clk 0:01:56.6]}
18... Nxe5 {[%clk 0:02:19.8]} 19. dxe5 {[%clk 0:01:56.6]} 19... Nd7 {[%clk
0:02:05.4]} 20. f4 {[%clk 0:01:55.6]} 20... f6 {[%clk 0:02:02.7]} 21. exf6
{[%clk 0:01:54.7]} 21... exf6 {[%clk 0:02:03.4]} 22. e4 {[%clk 0:01:52.6]} 22...
f5 {[%clk 0:01:57]} 23. e5 {[%clk 0:01:50.4]} 23... Bf8 {[%clk 0:01:55.5]} 24.
Bxf8 {[%clk 0:01:47.3]} 24... Nxf8 {[%clk 0:01:56.4]} 25. Qf3 {[%clk 0:01:46.4]}
25... Rd7 {[%clk 0:01:29.2]} 26. Rxd7 {[%clk 0:01:44.8]} 26... Nxd7 {[%clk
0:01:30.1]} 27. Rd1 {[%clk 0:01:40.8]} 27... Nc5 {[%clk 0:01:27.1]} 28. Rd5
{[%clk 0:01:33]} 28... Ne4 {[%clk 0:00:57.3]} 29. Qd3 {[%clk 0:01:27.2]} 29...
Nc5 {[%clk 0:00:32.7]} 30. Qf3 {[%clk 0:01:27.3]} 30... Ne4 {[%clk 0:00:32.6]}
31. Qd1 {[%clk 0:01:21.2]} 31... Re8 {[%clk 0:00:10.4]} 32. Qd4 {[%clk
0:01:09.7]} 32... Qc6 {[%clk 0:00:09.8]} 33. Kg1 {[%clk 0:01:07]} 33... Nc5
{[%clk 0:00:08.6]} 34. Nd2 {[%clk 0:00:59.6]} 34... Ne6 {[%clk 0:00:07.5]} 35.
Qd3 {[%clk 0:00:56]} 35... Kf8 {[%clk 0:00:06]} 36. h4 {[%clk 0:00:48]} 36... h5
{[%clk 0:00:05.8]} 37. Nf3 {[%clk 0:00:42.4]} 37... Ke7 {[%clk 0:00:06.4]} 38.
Nd4 {[%clk 0:00:33]} 38... Nxd4 {[%clk 0:00:04.2]} 39. Rxd4 {[%clk 0:00:31.8]}
39... Qc5 {[%clk 0:00:03.5]} 40. Kh2 {[%clk 0:00:30.9]} 40... Kf8 {[%clk
0:00:04.1]} 41. Rc4 {[%clk 0:00:22.5]} 41... Qe7 {[%clk 0:00:04]} 42. Rc6 {[%clk
0:00:22.1]} 42... Rd8 {[%clk 0:00:03.6]} 43. Qc3 {[%clk 0:00:19.8]} 43... Rd7
{[%clk 0:00:03.3]} 44. Rxg6 {[%clk 0:00:18.9]} 44... Rd1 {[%clk 0:00:02.3]} 45.
e6 {[%clk 0:00:18.4]} 45... Qh7 {[%clk 0:00:01.7]} 46. Qf6+ {[%clk 0:00:17.5]}
46... Ke8 {[%clk 0:00:02.4]} 47. Qxf5 {[%clk 0:00:17.2]} 47... Rd2+ {[%clk
0:00:02.6]} 48. Kh3 {[%clk 0:00:17.5]} 48... Qh8 {[%clk 0:00:01.4]} 49. Qg5
{[%clk 0:00:16.3]} 1-0

[Event "Early-Titled-Tuesday-Blitz-August-29-2023"]
[Site "Chess.com"]
[Date "2023.08.29"]
[Round "5"]
[White "angryspacevoid"]
[Black "AlexandraSamaganova"]
[Result "1-0"]
[WhiteElo "2531"]
[BlackElo "2353"]
[TimeControl "180+1"]
[EndTime "8:55:36 PDT"]
[Termination "angryspacevoid won on time"]

1. e4 {[%clk 0:02:59.4]} 1... c5 {[%clk 0:02:57.4]} 2. c3 {[%clk 0:02:57.5]}
2... Nf6 {[%clk 0:02:56.2]} 3. e5 {[%clk 0:02:56.6]} 3... Nd5 {[%clk 0:02:49.3]}
4. Nf3 {[%clk 0:02:53.3]} 4... Nc6 {[%clk 0:02:46.1]} 5. Bc4 {[%clk 0:02:53.3]}
5... e6 {[%clk 0:02:37.8]} 6. d4 {[%clk 0:02:52.2]} 6... cxd4 {[%clk 0:02:36.8]}
7. cxd4 {[%clk 0:02:53.1]} 7... d6 {[%clk 0:02:37.3]} 8. Qe2 {[%clk 0:02:52.6]}
8... Be7 {[%clk 0:02:35.1]} 9. Nc3 {[%clk 0:02:41.8]} 9... Ncb4 {[%clk
0:02:09.2]} 10. a3 {[%clk 0:02:21.4]} 10... Nxc3 {[%clk 0:02:06]} 11. bxc3
{[%clk 0:02:20.1]} 11... Nd5 {[%clk 0:02:06.3]} 12. Bd2 {[%clk 0:02:17.5]} 12...
O-O {[%clk 0:02:03.8]} 13. h4 {[%clk 0:02:17.1]} 13... a6 {[%clk 0:01:33.5]} 14.
Bd3 {[%clk 0:02:13.9]} 14... f5 {[%clk 0:01:20.3]} 15. exf6 {[%clk 0:01:48.8]}
15... Nxf6 {[%clk 0:01:02.6]} 16. h5 {[%clk 0:01:39.2]} 16... e5 {[%clk
0:00:51.6]} 17. dxe5 {[%clk 0:01:31.3]} 17... dxe5 {[%clk 0:00:51.6]} 18. Nxe5
{[%clk 0:01:32]} 18... b5 {[%clk 0:00:37.5]} 19. Nc6 {[%clk 0:01:23.8]} 19...
Qc7 {[%clk 0:00:27.8]} 20. Nxe7+ {[%clk 0:01:22.4]} 20... Kh8 {[%clk 0:00:28]}
21. h6 {[%clk 0:01:05.5]} 21... Re8 {[%clk 0:00:20.5]} 22. hxg7+ {[%clk
0:00:56.3]} 22... Kxg7 {[%clk 0:00:19.9]} 23. O-O-O {[%clk 0:00:48]} 23... Qxe7
{[%clk 0:00:17]} 24. Qxe7+ {[%clk 0:00:40.2]} 24... Rxe7 {[%clk 0:00:17.4]} 25.
f3 {[%clk 0:00:36.5]} 25... Bb7 {[%clk 0:00:16.7]} 26. Rh3 {[%clk 0:00:27.4]}
26... Rc8 {[%clk 0:00:13.7]} 27. g4 {[%clk 0:00:24.9]} 27... Rcc7 {[%clk
0:00:05.6]} 28. g5 {[%clk 0:00:24.7]} 28... Nd5 {[%clk 0:00:03]} 29. Rxh7+
{[%clk 0:00:25.2]} 29... Kf8 {[%clk 0:00:03.1]} 30. Rxe7 {[%clk 0:00:24.9]}
30... Kxe7 {[%clk 0:00:02.9]} 31. Kc2 {[%clk 0:00:23.6]} 31... Bc6 {[%clk
0:00:01.6]} 32. f4 {[%clk 0:00:22]} 32... Kf7 {[%clk 0:00:01.8]} 33. Rh1 {[%clk
0:00:21.6]} 33... Kg7 {[%clk 0:00:01.5]} 34. Rh7+ {[%clk 0:00:21.7]} 34... Kg8
{[%clk 0:00:02.1]} 35. Rxc7 {[%clk 0:00:21.5]} 35... Nxc7 {[%clk 0:00:03]} 36.
f5 {[%clk 0:00:20.8]} 36... Nd5 {[%clk 0:00:02.4]} 37. c4 {[%clk 0:00:17.9]}
37... bxc4 {[%clk 0:00:01.7]} 38. Bxc4 {[%clk 0:00:18.8]} 38... Kf8 {[%clk
0:00:01.9]} 39. Bxa6 {[%clk 0:00:18.7]} 39... Nc7 {[%clk 0:00:01.7]} 40. Bc4
{[%clk 0:00:18.5]} 40... Be4+ {[%clk 0:00:01.9]} 41. Bd3 {[%clk 0:00:16]} 41...
Bd5 {[%clk 0:00:02.4]} 42. f6 {[%clk 0:00:14.7]} 42... Ne8 {[%clk 0:00:02.3]}
43. Bg6 {[%clk 0:00:13.2]} 43... Nd6 {[%clk 0:00:02.4]} 44. Bb4 {[%clk
0:00:13.2]} 44... Kg8 {[%clk 0:00:01.7]} 45. Bxd6 {[%clk 0:00:13.5]} 45... Bc6
{[%clk 0:00:01.7]} 46. f7+ {[%clk 0:00:13.3]} 46... Kg7 {[%clk 0:00:01.8]} 47.
f8=Q+ {[%clk 0:00:13.7]} 47... Kxg6 {[%clk 0:00:02.7]} 48. Qh6+ {[%clk 0:00:14]}
48... Kf5 {[%clk 0:00:02.5]} 49. g6 {[%clk 0:00:14.2]} 1-0

[Event "Early-Titled-Tuesday-Blitz-August-29-2023"]
[Site "Chess.com"]
[Date "2023.08.29"]
[Round "5"]
[White "FormerProdigy"]
[Black "Beltraxtor"]
[Result "0-1"]
[WhiteElo "2861"]
[BlackElo "2654"]
[TimeControl "180+1"]
[EndTime "8:55:38 PDT"]
[Termination "Beltraxtor won on time"]

1. Nf3 {[%clk 0:03:00.9]} 1... Nf6 {[%clk 0:02:59.5]} 2. d4 {[%clk 0:03:01.1]}
2... d5 {[%clk 0:02:59.5]} 3. Bf4 {[%clk 0:03:01.7]} 3... e6 {[%clk 0:02:57]} 4.
e3 {[%clk 0:03:01.2]} 4... c5 {[%clk 0:02:55.7]} 5. c3 {[%clk 0:02:54.8]} 5...
Nc6 {[%clk 0:02:54.6]} 6. Nbd2 {[%clk 0:02:54.2]} 6... Bd6 {[%clk 0:02:48.7]} 7.
Bg3 {[%clk 0:02:44.3]} 7... O-O {[%clk 0:02:48.9]} 8. Bd3 {[%clk 0:02:44.1]}
8... b6 {[%clk 0:02:47.7]} 9. e4 {[%clk 0:02:43.7]} 9... dxe4 {[%clk 0:02:46.7]}
10. Nxe4 {[%clk 0:02:43.2]} 10... Be7 {[%clk 0:02:47]} 11. Nxf6+ {[%clk
0:02:14.2]} 11... Bxf6 {[%clk 0:02:45.3]} 12. Qc2 {[%clk 0:02:14.8]} 12... cxd4
{[%clk 0:02:11.4]} 13. Bxh7+ {[%clk 0:02:13.8]} 13... Kh8 {[%clk 0:02:10.8]} 14.
Be4 {[%clk 0:02:09.2]} 14... Bb7 {[%clk 0:01:55]} 15. Rd1 {[%clk 0:01:43.4]}
15... Qe7 {[%clk 0:01:36.6]} 16. O-O {[%clk 0:01:35]} 16... Rfd8 {[%clk
0:01:14.2]} 17. Qa4 {[%clk 0:01:24.9]} 17... Rac8 {[%clk 0:00:57.3]} 18. cxd4
{[%clk 0:01:24]} 18... Nxd4 {[%clk 0:00:54.2]} 19. Qxa7 {[%clk 0:00:57.3]} 19...
Ne2+ {[%clk 0:00:47.7]} 20. Kh1 {[%clk 0:00:57.2]} 20... Nxg3+ {[%clk
0:00:46.6]} 21. hxg3 {[%clk 0:00:50.9]} 21... Bxe4 {[%clk 0:00:46.5]} 22. Qxb6
{[%clk 0:00:49.7]} 22... Rb8 {[%clk 0:00:38.3]} 23. Qe3 {[%clk 0:00:43.2]} 23...
Bxf3 {[%clk 0:00:35.5]} 24. gxf3 {[%clk 0:00:44.1]} 24... Rxb2 {[%clk
0:00:34.1]} 25. Kg2 {[%clk 0:00:41]} 25... g6 {[%clk 0:00:27.2]} 26. Qh6+ {[%clk
0:00:35]} 26... Kg8 {[%clk 0:00:26.8]} 27. Rxd8+ {[%clk 0:00:35.9]} 27... Qxd8
{[%clk 0:00:26.7]} 28. a4 {[%clk 0:00:33.1]} 28... Qd4 {[%clk 0:00:17.7]} 29.
Qc1 {[%clk 0:00:29.2]} 29... Qd2 {[%clk 0:00:10.6]} 30. Qc8+ {[%clk 0:00:22.8]}
30... Kg7 {[%clk 0:00:10.7]} 31. a5 {[%clk 0:00:17.6]} 31... Bd4 {[%clk
0:00:10.8]} 32. Qd8 {[%clk 0:00:11.4]} 32... Qe3 {[%clk 0:00:07.3]} 33. Kh3
{[%clk 0:00:04.9]} 33... Rxf2 {[%clk 0:00:06.2]} 34. Rxf2 {[%clk 0:00:05.8]}
34... Qxf2 {[%clk 0:00:06.5]} 35. a6 {[%clk 0:00:05.6]} 35... Qf1+ {[%clk
0:00:06.3]} 36. Kg4 {[%clk 0:00:03.9]} 36... Bf6 {[%clk 0:00:04.2]} 37. Qa8
{[%clk 0:00:01.8]} 37... Qc4+ {[%clk 0:00:01.9]} 38. Kh3 {[%clk 0:00:02.3]}
38... Qf1+ {[%clk 0:00:02.3]} 39. Kg4 {[%clk 0:00:02.8]} 39... Bd4 {[%clk
0:00:02.7]} 40. Qb7 {[%clk 0:00:01.2]} 40... Qc4 {[%clk 0:00:01.6]} 0-1

[Event "Early-Titled-Tuesday-Blitz-August-29-2023"]
[Site "Chess.com"]
[Date "2023.08.29"]
[Round "5"]
[White "krzyzan94"]
[Black "Angry_Twin"]
[Result "1-0"]
[WhiteElo "2785"]
[BlackElo "2955"]
[TimeControl "180+1"]
[EndTime "8:55:40 PDT"]
[Termination "krzyzan94 won by resignation"]

1. Nf3 {[%clk 0:03:00.9]} 1... d5 {[%clk 0:03:00]} 2. g3 {[%clk 0:03:00.5]} 2...
Nf6 {[%clk 0:03:00.7]} 3. Bg2 {[%clk 0:03:00.8]} 3... g6 {[%clk 0:03:01]} 4. O-O
{[%clk 0:03:01.3]} 4... Bg7 {[%clk 0:03:01.7]} 5. c4 {[%clk 0:02:58.7]} 5... c6
{[%clk 0:03:00.1]} 6. d3 {[%clk 0:02:54.8]} 6... O-O {[%clk 0:02:59.8]} 7. Nc3
{[%clk 0:02:51.9]} 7... Re8 {[%clk 0:02:58.8]} 8. cxd5 {[%clk 0:02:48]} 8...
cxd5 {[%clk 0:02:58.8]} 9. e4 {[%clk 0:02:48.5]} 9... Nc6 {[%clk 0:02:42.9]} 10.
e5 {[%clk 0:02:34.5]} 10... Nd7 {[%clk 0:02:42.7]} 11. d4 {[%clk 0:02:35]} 11...
Nb6 {[%clk 0:02:43.2]} 12. h3 {[%clk 0:02:34.8]} 12... Bf5 {[%clk 0:02:41.3]}
13. Re1 {[%clk 0:02:33.9]} 13... Nb4 {[%clk 0:02:33.1]} 14. Re2 {[%clk
0:02:17.8]} 14... Rc8 {[%clk 0:02:22.9]} 15. Ne1 {[%clk 0:02:10.2]} 15... Qd7
{[%clk 0:02:15.3]} 16. Kh2 {[%clk 0:02:02.3]} 16... f6 {[%clk 0:01:59.9]} 17. a3
{[%clk 0:01:52.9]} 17... Nc6 {[%clk 0:01:59.3]} 18. f4 {[%clk 0:01:29.6]} 18...
fxe5 {[%clk 0:01:50.8]} 19. dxe5 {[%clk 0:01:06.1]} 19... Red8 {[%clk 0:01:47]}
20. Nf3 {[%clk 0:00:40.3]} 20... d4 {[%clk 0:01:42.1]} 21. Ne4 {[%clk
0:00:33.6]} 21... d3 {[%clk 0:01:39.8]} 22. Re1 {[%clk 0:00:32.4]} 22... Nc4
{[%clk 0:01:31.2]} 23. Bd2 {[%clk 0:00:23.1]} 23... Nxd2 {[%clk 0:01:09.8]} 24.
Qxd2 {[%clk 0:00:23.1]} 24... Qd5 {[%clk 0:01:10.4]} 25. Nfg5 {[%clk 0:00:22.1]}
25... Qb3 {[%clk 0:01:09.1]} 26. Rac1 {[%clk 0:00:19.5]} 26... Nd4 {[%clk
0:01:08.2]} 27. Nc5 {[%clk 0:00:19.5]} 27... Qb6 {[%clk 0:00:58.1]} 28. b4
{[%clk 0:00:19.5]} 28... Ne2 {[%clk 0:00:50]} 29. Rc4 {[%clk 0:00:16]} 29... Qb5
{[%clk 0:00:48.1]} 30. Qa2 {[%clk 0:00:12.7]} 30... e6 {[%clk 0:00:48.4]} 31. g4
{[%clk 0:00:11.1]} 31... d2 {[%clk 0:00:42.2]} 32. Rxe2 {[%clk 0:00:10.8]} 32...
d1=Q {[%clk 0:00:42.6]} 33. gxf5 {[%clk 0:00:11.4]} 33... gxf5 {[%clk
0:00:19.2]} 34. Rd4 {[%clk 0:00:09.4]} 34... Qe8 {[%clk 0:00:14.1]} 35. Rxd1
{[%clk 0:00:08.7]} 35... Rxd1 {[%clk 0:00:14.4]} 36. Ngxe6 {[%clk 0:00:06.9]}
36... Kh8 {[%clk 0:00:14.7]} 37. Ng5 {[%clk 0:00:07.1]} 37... h6 {[%clk
0:00:14.7]} 38. Nf7+ {[%clk 0:00:06.4]} 38... Kh7 {[%clk 0:00:15.2]} 39. Nd6
{[%clk 0:00:07.1]} 39... Qd8 {[%clk 0:00:09.8]} 40. Nxc8 {[%clk 0:00:06.4]}
40... Qd4 {[%clk 0:00:10.5]} 41. Ne6 {[%clk 0:00:04.6]} 41... Qd3 {[%clk
0:00:08.4]} 42. Qc2 {[%clk 0:00:03.7]} 42... Bh8 {[%clk 0:00:03.8]} 43. Qxd3
{[%clk 0:00:03.9]} 43... Rxd3 {[%clk 0:00:04.7]} 44. Nc5 {[%clk 0:00:04.4]}
44... Rc3 {[%clk 0:00:04.7]} 45. e6 {[%clk 0:00:04.9]} 45... b6 {[%clk
0:00:05.6]} 46. e7 {[%clk 0:00:05.5]} 46... bxc5 {[%clk 0:00:05.7]} 47. e8=Q
{[%clk 0:00:06.1]} 47... cxb4 {[%clk 0:00:06.6]} 48. Qf7+ {[%clk 0:00:06.5]}
48... Bg7 {[%clk 0:00:07.5]} 49. Ne7 {[%clk 0:00:06.8]} 1-0